[Event "Titled Tuesday Blitz April 18 Early 2023"]
[White "Dehtiarov, Roman"]
[Black "Ansh M Shah"]
[WhiteFideId "14186640"]
[BlackFideId "25033379"]
[WhiteElo "2189"]
[BlackElo "2084"]
[Result "1-0"]
[Round "01"]
[TimeControl "180+2"]
[Date "2023.04.18"]
[WhiteClock "0:00:24"]
[BlackClock "0:00:02"]

1. c4 {[%clk 0:02:59]}  Nf6 {[%clk 0:02:59]} 2. Nc3 {[%clk 0:02:56]}  e6 {[%clk 0:03:00]} 3. e4 {[%clk 0:02:56]}  d5 {[%clk 0:03:01]} 4. cxd5 {[%clk 0:02:56]}  exd5 {[%clk 0:03:01]} 5. e5 {[%clk 0:02:57]}  d4 {[%clk 0:03:02]} 6. exf6 {[%clk 0:02:57]}  dxc3 {[%clk 0:03:02]} 7. Bb5+ {[%clk 0:02:58]}  c6 {[%clk 0:03:02]} 8. Qe2+ {[%clk 0:02:58]}  Be6 {[%clk 0:03:02]} 9. Bc4 {[%clk 0:02:58]}  cxd2+ {[%clk 0:02:57]} 10. Bxd2 {[%clk 0:02:58]}  Qxf6 {[%clk 0:02:55]} 11. Bc3 {[%clk 0:02:58]}  Qe7 {[%clk 0:02:52]} 12. O-O-O {[%clk 0:02:56]}  Nd7 {[%clk 0:02:52]} 13. Nf3 {[%clk 0:02:53]}  O-O-O {[%clk 0:02:48]} 14. Rhe1 {[%clk 0:02:43]}  Rg8 {[%clk 0:01:46]} 15. Bxe6 {[%clk 0:02:34]}  Qxe6 {[%clk 0:01:47]} 16. Qxe6 {[%clk 0:02:33]}  fxe6 {[%clk 0:01:48]} 17. Ng5 {[%clk 0:02:28]}  Nc5 {[%clk 0:01:36]} 18. Rxd8+ {[%clk 0:02:25]}  Kxd8 {[%clk 0:01:37]} 19. b4 {[%clk 0:02:06]}  Be7 {[%clk 0:01:25]} 20. Nxe6+ {[%clk 0:01:48]}  Nxe6 {[%clk 0:01:20]} 21. Rxe6 {[%clk 0:01:49]}  Kd7 {[%clk 0:01:17]} 22. Re2 {[%clk 0:01:48]}  Bf6 {[%clk 0:01:11]} 23. Bxf6 {[%clk 0:01:46]}  gxf6 {[%clk 0:01:12]} 24. g3 {[%clk 0:01:46]}  Rg4 {[%clk 0:01:11]} 25. a3 {[%clk 0:01:46]}  a5 {[%clk 0:01:10]} 26. bxa5 {[%clk 0:01:45]}  Ra4 {[%clk 0:01:11]} 27. Kb2 {[%clk 0:01:42]}  Rxa5 {[%clk 0:01:10]} 28. Rd2+ {[%clk 0:01:43]}  Ke7 {[%clk 0:01:03]} 29. Re2+ {[%clk 0:01:35]}  Kd7 {[%clk 0:00:59]} 30. f4 {[%clk 0:01:32]}  h5 {[%clk 0:00:51]} 31. Kb3 {[%clk 0:01:31]}  h4 {[%clk 0:00:51]} 32. g4 {[%clk 0:01:26]}  Rb5+ {[%clk 0:00:48]} 33. Kc3 {[%clk 0:01:24]}  Ra5 {[%clk 0:00:43]} 34. Kb4 {[%clk 0:01:12]}  Rb5+ {[%clk 0:00:42]} 35. Ka4 {[%clk 0:01:08]}  Rd5 {[%clk 0:00:37]} 36. Rf2 {[%clk 0:00:49]}  Ke6 {[%clk 0:00:28]} 37. Kb3 {[%clk 0:00:48]}  Rd3+ {[%clk 0:00:28]} 38. Kb4 {[%clk 0:00:46]}  Rd4+ {[%clk 0:00:26]} 39. Kc5 {[%clk 0:00:43]}  Ra4 {[%clk 0:00:26]} 40. Rf3 {[%clk 0:00:39]}  Ra5+ {[%clk 0:00:22]} 41. Kb6 {[%clk 0:00:38]}  Rb5+ {[%clk 0:00:22]} 42. Kc7 {[%clk 0:00:38]}  Rb2 {[%clk 0:00:22]} 43. h3 {[%clk 0:00:34]}  Kd5 {[%clk 0:00:20]} 44. f5 {[%clk 0:00:30]}  Ke4 {[%clk 0:00:13]} 45. Rf1 {[%clk 0:00:28]}  Ke5 {[%clk 0:00:06]} 46. g5 {[%clk 0:00:24]}  fxg5 {[%clk 0:00:02]} 47. f6 {[%clk 0:00:24]} 1-0


[Site "https://www.chess.com"]

[Event "Titled Tuesday Blitz April 18 Early 2023"]
[White "Marcziter, Dmitrii"]
[Black "HSH1987"]
[WhiteFideId "13900765"]
[WhiteElo "2162"]
[BlackElo "2697"]
[Result "1/2-1/2"]
[Round "01"]
[TimeControl "180+2"]
[Date "2023.04.18"]
[WhiteClock "0:00:14"]
[BlackClock "0:00:10"]

1. e4 {[%clk 0:02:59]}  c6 {[%clk 0:02:56]} 2. c4 {[%clk 0:02:58]}  d5 {[%clk 0:02:57]} 3. exd5 {[%clk 0:02:58]}  cxd5 {[%clk 0:02:58]} 4. cxd5 {[%clk 0:02:59]}  Nf6 {[%clk 0:02:59]} 5. Nc3 {[%clk 0:02:59]}  g6 {[%clk 0:03:00]} 6. Qb3 {[%clk 0:02:59]}  Bg7 {[%clk 0:02:59]} 7. Nf3 {[%clk 0:03:00]}  O-O {[%clk 0:02:59]} 8. d4 {[%clk 0:03:00]}  Na6 {[%clk 0:02:55]} 9. Bc4 {[%clk 0:02:55]}  Qb6 {[%clk 0:02:54]} 10. O-O {[%clk 0:02:49]}  Rd8 {[%clk 0:02:29]} 11. Bf4 {[%clk 0:02:41]}  Qxb3 {[%clk 0:02:21]} 12. axb3 {[%clk 0:02:31]}  Nb4 {[%clk 0:02:19]} 13. Bc7 {[%clk 0:02:17]}  Rd7 {[%clk 0:02:14]} 14. Ba5 {[%clk 0:02:09]}  Nbxd5 {[%clk 0:02:09]} 15. Ne5 {[%clk 0:02:08]}  e6 {[%clk 0:01:11]} 16. Nxd7 {[%clk 0:02:06]}  Bxd7 {[%clk 0:01:10]} 17. Nxd5 {[%clk 0:02:04]}  exd5 {[%clk 0:01:04]} 18. Bd3 {[%clk 0:02:01]}  Ne4 {[%clk 0:01:01]} 19. Bc3 {[%clk 0:01:54]}  a6 {[%clk 0:01:00]} 20. f3 {[%clk 0:01:53]}  Nd6 {[%clk 0:00:59]} 21. Rfd1 {[%clk 0:01:47]}  h5 {[%clk 0:00:56]} 22. Kf2 {[%clk 0:01:45]}  h4 {[%clk 0:00:52]} 23. Bf1 {[%clk 0:01:41]}  Bf6 {[%clk 0:00:45]} 24. Rac1 {[%clk 0:01:39]}  Nf5 {[%clk 0:00:40]} 25. g4 {[%clk 0:01:27]}  hxg3+ {[%clk 0:00:40]} 26. hxg3 {[%clk 0:01:28]}  Re8 {[%clk 0:00:39]} 27. g4 {[%clk 0:01:22]}  Nd6 {[%clk 0:00:39]} 28. Re1 {[%clk 0:01:21]}  Bh4+ {[%clk 0:00:35]} 29. Kg2 {[%clk 0:01:15]}  Bxe1 {[%clk 0:00:36]} 30. Rxe1 {[%clk 0:01:13]}  Rxe1 {[%clk 0:00:36]} 31. Bxe1 {[%clk 0:01:13]}  Bb5 {[%clk 0:00:33]} 32. Bxb5 {[%clk 0:01:11]}  Nxb5 {[%clk 0:00:34]} 33. Bc3 {[%clk 0:01:11]}  f6 {[%clk 0:00:33]} 34. f4 {[%clk 0:01:11]}  Kf7 {[%clk 0:00:32]} 35. Kf3 {[%clk 0:01:09]}  f5 {[%clk 0:00:29]} 36. g5 {[%clk 0:01:08]}  Ke6 {[%clk 0:00:29]} 37. Ke3 {[%clk 0:01:08]}  Kd7 {[%clk 0:00:30]} 38. Kd3 {[%clk 0:01:06]}  Kc6 {[%clk 0:00:30]} 39. Bb4 {[%clk 0:01:04]}  Nc7 {[%clk 0:00:28]} 40. Be1 {[%clk 0:00:59]}  Ne6 {[%clk 0:00:29]} 41. Ke3 {[%clk 0:00:57]}  Kb5 {[%clk 0:00:29]} 42. Bd2 {[%clk 0:00:56]}  a5 {[%clk 0:00:30]} 43. Kd3 {[%clk 0:00:55]}  a4 {[%clk 0:00:29]} 44. bxa4+ {[%clk 0:00:54]}  Kxa4 {[%clk 0:00:30]} 45. Kc3 {[%clk 0:00:53]}  Nd8 {[%clk 0:00:23]} 46. Bc1 {[%clk 0:00:50]}  Nc6 {[%clk 0:00:24]} 47. b3+ {[%clk 0:00:50]}  Kb5 {[%clk 0:00:24]} 48. Ba3 {[%clk 0:00:49]}  Nd8 {[%clk 0:00:23]} 49. Bd6 {[%clk 0:00:47]}  Kc6 {[%clk 0:00:20]} 50. Be5 {[%clk 0:00:47]}  Kb5 {[%clk 0:00:15]} 51. Bd6 {[%clk 0:00:46]}  Nc6 {[%clk 0:00:16]} 52. Be5 {[%clk 0:00:43]}  b6 {[%clk 0:00:15]} 53. Bd6 {[%clk 0:00:42]}  Na5 {[%clk 0:00:15]} 54. Bf8 {[%clk 0:00:41]}  Nb7 {[%clk 0:00:16]} 55. Be7 {[%clk 0:00:40]}  Kc6 {[%clk 0:00:16]} 56. Kb4 {[%clk 0:00:38]}  Na5 {[%clk 0:00:15]} 57. Bf8 {[%clk 0:00:36]}  Nb7 {[%clk 0:00:13]} 58. Kc3 {[%clk 0:00:36]}  Kb5 {[%clk 0:00:12]} 59. Be7 {[%clk 0:00:35]}  Na5 {[%clk 0:00:12]} 60. Bf8 {[%clk 0:00:35]}  Nc6 {[%clk 0:00:13]} 61. Bd6 {[%clk 0:00:34]}  Nd8 {[%clk 0:00:13]} 62. Be5 {[%clk 0:00:33]}  Ne6 {[%clk 0:00:12]} 63. Bd6 {[%clk 0:00:32]}  Ng7 {[%clk 0:00:12]} 64. Be5 {[%clk 0:00:31]}  Nh5 {[%clk 0:00:12]} 65. Bb8 {[%clk 0:00:27]}  Ng3 {[%clk 0:00:13]} 66. Be5 {[%clk 0:00:27]}  Ne4+ {[%clk 0:00:14]} 67. Kb2 {[%clk 0:00:25]}  Kb4 {[%clk 0:00:14]} 68. Bg7 {[%clk 0:00:23]}  Nf2 {[%clk 0:00:12]} 69. Bf8+ {[%clk 0:00:23]}  Kb5 {[%clk 0:00:13]} 70. Bd6 {[%clk 0:00:22]}  Kc6 {[%clk 0:00:08]} 71. Be5 {[%clk 0:00:20]}  Kb5 {[%clk 0:00:08]} 72. Kc3 {[%clk 0:00:20]}  Ne4+ {[%clk 0:00:08]} 73. Kb2 {[%clk 0:00:19]}  Kb4 {[%clk 0:00:09]} 74. Bg7 {[%clk 0:00:18]}  Nd2 {[%clk 0:00:09]} 75. Bf8+ {[%clk 0:00:18]}  Kb5 {[%clk 0:00:09]} 76. Kc3 {[%clk 0:00:17]}  Nf3 {[%clk 0:00:09]} 77. Bg7 {[%clk 0:00:15]}  Ng1 {[%clk 0:00:08]} 78. Be5 {[%clk 0:00:15]}  Nh3 {[%clk 0:00:09]} 79. Kb2 {[%clk 0:00:14]}  Nf2 {[%clk 0:00:10]} 80. Kc3 {[%clk 0:00:14]}  Ne4+ {[%clk 0:00:10]} 1/2-1/2


[Site "https://www.chess.com"]

[Event "Titled Tuesday Blitz April 18 Early 2023"]
[White "Horvath, Dominik"]
[Black "Pavlidou, Ekaterini"]
[WhiteFideId "1642561"]
[BlackFideId "4213262"]
[WhiteElo "2407"]
[BlackElo "2126"]
[Result "1-0"]
[Round "01"]
[TimeControl "180+2"]
[Date "2023.04.18"]
[WhiteClock "0:02:01"]
[BlackClock "0:01:42"]

1. d4 {[%clk 0:02:52]}  Nf6 {[%clk 0:02:58]} 2. Nf3 {[%clk 0:02:52]}  e6 {[%clk 0:02:58]} 3. Bf4 {[%clk 0:02:50]}  d5 {[%clk 0:02:58]} 4. e3 {[%clk 0:02:50]}  Bd6 {[%clk 0:02:58]} 5. Ne5 {[%clk 0:02:50]}  c5 {[%clk 0:02:55]} 6. c3 {[%clk 0:02:45]}  O-O {[%clk 0:02:54]} 7. Nd2 {[%clk 0:02:43]}  Nc6 {[%clk 0:02:54]} 8. Bd3 {[%clk 0:02:43]}  Ne7 {[%clk 0:02:54]} 9. h4 {[%clk 0:02:41]}  b6 {[%clk 0:02:53]} 10. h5 {[%clk 0:02:41]}  h6 {[%clk 0:02:52]} 11. g4 {[%clk 0:02:40]}  Bb7 {[%clk 0:02:51]} 12. g5 {[%clk 0:02:40]}  hxg5 {[%clk 0:02:50]} 13. Bxg5 {[%clk 0:02:41]}  Bxe5 {[%clk 0:02:46]} 14. dxe5 {[%clk 0:02:40]}  Ne4 {[%clk 0:02:46]} 15. Bxe4 {[%clk 0:02:32]}  dxe4 {[%clk 0:02:45]} 16. Rg1 {[%clk 0:02:32]}  Kh8 {[%clk 0:02:33]} 17. Qg4 {[%clk 0:02:32]}  Rg8 {[%clk 0:02:26]} 18. O-O-O {[%clk 0:02:27]}  Qf8 {[%clk 0:02:23]} 19. Nxe4 {[%clk 0:02:24]}  Nf5 {[%clk 0:02:20]} 20. Nd6 {[%clk 0:02:21]}  f6 {[%clk 0:02:15]} 21. Bf4 {[%clk 0:02:14]}  Nxd6 {[%clk 0:02:12]} 22. Rxd6 {[%clk 0:02:14]}  f5 {[%clk 0:02:06]} 23. Qg6 {[%clk 0:02:13]}  Qe8 {[%clk 0:02:00]} 24. Rxe6 {[%clk 0:02:05]}  Qxg6 {[%clk 0:01:59]} 25. hxg6 {[%clk 0:02:05]}  Rge8 {[%clk 0:01:56]} 26. Rd6 {[%clk 0:02:04]}  Rad8 {[%clk 0:01:54]} 27. Rgd1 {[%clk 0:02:04]}  Rxd6 {[%clk 0:01:49]} 28. exd6 {[%clk 0:02:04]}  Bc6 {[%clk 0:01:47]} 29. d7 {[%clk 0:02:00]}  Rd8 {[%clk 0:01:47]} 30. Rd6 {[%clk 0:02:00]}  Bb5 {[%clk 0:01:42]} 31. c4 {[%clk 0:02:01]} 1-0


[Site "https://www.chess.com"]

[Event "Titled Tuesday Blitz April 18 Early 2023"]
[White "polandchessplayer"]
[Black "Buscar, Michael"]
[BlackFideId "2603616"]
[WhiteElo "2685"]
[BlackElo "2010"]
[Result "0-1"]
[Round "01"]
[TimeControl "180+2"]
[Date "2023.04.18"]
[WhiteClock "0:00:18"]
[BlackClock "0:00:12"]

1. d4 {[%clk 0:03:00]}  d5 {[%clk 0:02:58]} 2. Nf3 {[%clk 0:03:00]}  Nf6 {[%clk 0:02:56]} 3. g3 {[%clk 0:03:00]}  Bg4 {[%clk 0:02:55]} 4. Bg2 {[%clk 0:03:00]}  e6 {[%clk 0:02:55]} 5. O-O {[%clk 0:03:01]}  Be7 {[%clk 0:02:55]} 6. Ne5 {[%clk 0:03:01]}  Bh5 {[%clk 0:02:54]} 7. c4 {[%clk 0:03:02]}  c6 {[%clk 0:02:53]} 8. Nc3 {[%clk 0:03:02]}  O-O {[%clk 0:02:50]} 9. Qb3 {[%clk 0:03:03]}  Qb6 {[%clk 0:02:50]} 10. c5 {[%clk 0:02:57]}  Qxb3 {[%clk 0:02:48]} 11. axb3 {[%clk 0:02:58]}  Nbd7 {[%clk 0:02:47]} 12. Nd3 {[%clk 0:02:36]}  Rfe8 {[%clk 0:02:41]} 13. Bf4 {[%clk 0:02:35]}  Bg6 {[%clk 0:01:56]} 14. Rfd1 {[%clk 0:02:25]}  Nh5 {[%clk 0:01:54]} 15. Be3 {[%clk 0:02:17]}  Bf8 {[%clk 0:01:54]} 16. b4 {[%clk 0:02:16]}  a6 {[%clk 0:01:54]} 17. Nf4 {[%clk 0:02:07]}  Nxf4 {[%clk 0:01:50]} 18. gxf4 {[%clk 0:02:08]}  f6 {[%clk 0:01:50]} 19. Ra3 {[%clk 0:01:45]}  Bf7 {[%clk 0:01:40]} 20. Rda1 {[%clk 0:01:41]}  Rac8 {[%clk 0:01:36]} 21. Rd1 {[%clk 0:01:38]}  Be7 {[%clk 0:01:31]} 22. Raa1 {[%clk 0:01:37]}  Bd8 {[%clk 0:01:31]} 23. Rd2 {[%clk 0:01:36]}  Bc7 {[%clk 0:01:31]} 24. Kh1 {[%clk 0:01:28]}  Nf8 {[%clk 0:01:31]} 25. Bh3 {[%clk 0:01:26]}  Rcd8 {[%clk 0:01:19]} 26. Rg1 {[%clk 0:01:23]}  e5 {[%clk 0:00:43]} 27. fxe5 {[%clk 0:01:23]}  fxe5 {[%clk 0:00:43]} 28. dxe5 {[%clk 0:01:24]}  Bxe5 {[%clk 0:00:42]} 29. Bd4 {[%clk 0:01:24]}  Ng6 {[%clk 0:00:41]} 30. e3 {[%clk 0:01:18]}  Nh4 {[%clk 0:00:34]} 31. Bg4 {[%clk 0:00:55]}  Bg6 {[%clk 0:00:29]} 32. Bd1 {[%clk 0:00:47]}  Re7 {[%clk 0:00:24]} 33. Rg4 {[%clk 0:00:41]}  Nf5 {[%clk 0:00:21]} 34. Bxe5 {[%clk 0:00:41]}  Rxe5 {[%clk 0:00:20]} 35. Ne2 {[%clk 0:00:39]}  Rf8 {[%clk 0:00:20]} 36. Rf4 {[%clk 0:00:36]}  Bh5 {[%clk 0:00:15]} 37. Nc3 {[%clk 0:00:28]}  Bxd1 {[%clk 0:00:14]} 38. Rxd1 {[%clk 0:00:29]}  g5 {[%clk 0:00:14]} 39. Rg4 {[%clk 0:00:25]}  Nh4 {[%clk 0:00:13]} 40. Kg1 {[%clk 0:00:20]}  h5 {[%clk 0:00:13]} 41. Rg3 {[%clk 0:00:20]}  g4 {[%clk 0:00:12]} 42. Ne2 {[%clk 0:00:18]}  Nf3+ {[%clk 0:00:12]} 43. Kh1 {[%clk 0:00:19]}  Kh7 {[%clk 0:00:13]} 44. Nf4 {[%clk 0:00:19]}  Kh6 {[%clk 0:00:13]} 45. Rd4 {[%clk 0:00:18]}  Nxd4 {[%clk 0:00:13]} 46. exd4 {[%clk 0:00:18]}  Re1+ {[%clk 0:00:12]} 0-1


[Site "https://www.chess.com"]

[Event "Titled Tuesday Blitz April 18 Early 2023"]
[White "Szente Varga, Fruzsina"]
[Black "Shuvalova, Polina"]
[WhiteFideId "712264"]
[BlackFideId "24171760"]
[WhiteElo "1994"]
[BlackElo "2281"]
[Result "0-1"]
[Round "01"]
[TimeControl "180+2"]
[Date "2023.04.18"]
[WhiteClock "0:00:16"]
[BlackClock "0:01:23"]

1. e4 {[%clk 0:02:56]}  c6 {[%clk 0:02:59]} 2. d4 {[%clk 0:02:52]}  d5 {[%clk 0:03:00]} 3. e5 {[%clk 0:02:51]}  Bf5 {[%clk 0:03:00]} 4. c3 {[%clk 0:02:51]}  e6 {[%clk 0:02:59]} 5. Ne2 {[%clk 0:02:50]}  Ne7 {[%clk 0:02:59]} 6. Ng3 {[%clk 0:02:50]}  Bg6 {[%clk 0:02:58]} 7. h4 {[%clk 0:02:46]}  h6 {[%clk 0:02:57]} 8. h5 {[%clk 0:02:46]}  Bh7 {[%clk 0:02:58]} 9. Bd3 {[%clk 0:02:46]}  Bxd3 {[%clk 0:02:59]} 10. Qxd3 {[%clk 0:02:47]}  c5 {[%clk 0:02:59]} 11. O-O {[%clk 0:02:45]}  Nd7 {[%clk 0:02:55]} 12. f4 {[%clk 0:02:41]}  Qb6 {[%clk 0:02:41]} 13. a4 {[%clk 0:02:33]}  Qa6 {[%clk 0:02:39]} 14. Qe3 {[%clk 0:02:23]}  Rc8 {[%clk 0:02:36]} 15. f5 {[%clk 0:02:19]}  exf5 {[%clk 0:02:32]} 16. Nxf5 {[%clk 0:02:09]}  Nxf5 {[%clk 0:02:31]} 17. Rxf5 {[%clk 0:02:09]}  Qe6 {[%clk 0:02:22]} 18. Rf1 {[%clk 0:02:03]}  Be7 {[%clk 0:02:19]} 19. Nd2 {[%clk 0:01:39]}  O-O {[%clk 0:02:12]} 20. Nf3 {[%clk 0:01:38]}  Qg4 {[%clk 0:02:09]} 21. Bd2 {[%clk 0:01:07]}  Qxh5 {[%clk 0:02:02]} 22. e6 {[%clk 0:01:08]}  Nf6 {[%clk 0:02:00]} 23. exf7+ {[%clk 0:01:05]}  Qxf7 {[%clk 0:01:56]} 24. Ne5 {[%clk 0:01:04]}  Qe6 {[%clk 0:01:56]} 25. Qg3 {[%clk 0:01:03]}  Ne4 {[%clk 0:01:51]} 26. Qe3 {[%clk 0:00:58]}  Bg5 {[%clk 0:01:43]} 27. Qd3 {[%clk 0:00:44]}  Bxd2 {[%clk 0:01:38]} 28. Nf3 {[%clk 0:00:34]}  Bf4 {[%clk 0:01:34]} 29. Rad1 {[%clk 0:00:32]}  c4 {[%clk 0:01:33]} 30. Qc2 {[%clk 0:00:31]}  Qg4 {[%clk 0:01:31]} 31. Rde1 {[%clk 0:00:27]}  Qg3 {[%clk 0:01:29]} 32. Rxe4 {[%clk 0:00:15]}  dxe4 {[%clk 0:01:29]} 33. Qxe4 {[%clk 0:00:16]}  Rce8 {[%clk 0:01:29]} 34. Qd5+ {[%clk 0:00:16]}  Kh8 {[%clk 0:01:29]} 35. Qxc4 {[%clk 0:00:17]}  Be3+ {[%clk 0:01:28]} 36. Kh1 {[%clk 0:00:16]}  Re4 {[%clk 0:01:23]} 0-1


[Site "https://www.chess.com"]

[Event "Titled Tuesday Blitz April 18 Early 2023"]
[White "Bernabeu Lopez, Carlos Javier"]
[Black "Smiechu"]
[WhiteFideId "2235366"]
[WhiteElo "2344"]
[BlackElo "2342"]
[Result "1/2-1/2"]
[Round "01"]
[TimeControl "180+2"]
[Date "2023.04.18"]
[WhiteClock "0:02:06"]
[BlackClock "0:00:19"]

1. d4 {[%clk 0:03:00]}  Nf6 {[%clk 0:02:56]} 2. Nf3 {[%clk 0:03:01]}  c5 {[%clk 0:02:56]} 3. d5 {[%clk 0:03:01]}  e6 {[%clk 0:02:55]} 4. Nc3 {[%clk 0:02:59]}  b5 {[%clk 0:02:54]} 5. dxe6 {[%clk 0:02:58]}  fxe6 {[%clk 0:02:54]} 6. Nxb5 {[%clk 0:02:58]}  d5 {[%clk 0:02:54]} 7. Nc3 {[%clk 0:02:58]}  Bd6 {[%clk 0:02:51]} 8. Bg5 {[%clk 0:02:56]}  O-O {[%clk 0:02:50]} 9. e3 {[%clk 0:02:57]}  Nc6 {[%clk 0:02:49]} 10. Bd3 {[%clk 0:02:57]}  Rb8 {[%clk 0:02:37]} 11. Rb1 {[%clk 0:02:53]}  Qa5 {[%clk 0:02:31]} 12. O-O {[%clk 0:02:52]}  d4 {[%clk 0:02:15]} 13. exd4 {[%clk 0:02:48]}  cxd4 {[%clk 0:02:15]} 14. Bxf6 {[%clk 0:02:49]}  dxc3 {[%clk 0:01:57]} 15. Bxc3 {[%clk 0:02:50]}  Qh5 {[%clk 0:01:55]} 16. Bxh7+ {[%clk 0:02:49]}  Kxh7 {[%clk 0:01:41]} 17. Qxd6 {[%clk 0:02:49]}  Bb7 {[%clk 0:01:40]} 18. Rbe1 {[%clk 0:02:46]}  Rbd8 {[%clk 0:01:10]} 19. Qg3 {[%clk 0:02:41]}  e5 {[%clk 0:01:01]} 20. Re4 {[%clk 0:02:38]}  Nd4 {[%clk 0:00:48]} 21. Rh4 {[%clk 0:02:38]}  Ne2+ {[%clk 0:00:47]} 22. Kh1 {[%clk 0:02:38]}  Nxg3+ {[%clk 0:00:47]} 23. hxg3 {[%clk 0:02:37]}  Bxf3 {[%clk 0:00:44]} 24. gxf3 {[%clk 0:02:36]}  Qxh4+ {[%clk 0:00:42]} 25. gxh4 {[%clk 0:02:37]}  Rxf3 {[%clk 0:00:42]} 26. Kg2 {[%clk 0:02:37]}  Rf4 {[%clk 0:00:38]} 27. Bxe5 {[%clk 0:02:37]}  Rxh4 {[%clk 0:00:38]} 28. Bg3 {[%clk 0:02:35]}  Rc4 {[%clk 0:00:36]} 29. c3 {[%clk 0:02:34]}  Rd2 {[%clk 0:00:36]} 30. Rb1 {[%clk 0:02:35]}  Re4 {[%clk 0:00:33]} 31. a3 {[%clk 0:02:33]}  Ree2 {[%clk 0:00:33]} 32. b4 {[%clk 0:02:34]}  Ra2 {[%clk 0:00:32]} 33. Kf3 {[%clk 0:02:31]}  Rec2 {[%clk 0:00:31]} 34. Rh1+ {[%clk 0:02:31]}  Kg8 {[%clk 0:00:31]} 35. Rg1 {[%clk 0:02:32]}  Rxc3+ {[%clk 0:00:29]} 36. Ke4 {[%clk 0:02:32]}  Rc4+ {[%clk 0:00:22]} 37. Kd5 {[%clk 0:02:32]}  Rg4 {[%clk 0:00:23]} 38. Rc1 {[%clk 0:02:24]}  Rxa3 {[%clk 0:00:23]} 39. b5 {[%clk 0:02:25]}  Rd3+ {[%clk 0:00:23]} 40. Kc6 {[%clk 0:02:22]}  Rb3 {[%clk 0:00:23]} 41. Be5 {[%clk 0:02:20]}  Rgb4 {[%clk 0:00:23]} 42. Rc5 {[%clk 0:02:19]}  Rb1 {[%clk 0:00:21]} 43. f4 {[%clk 0:02:19]}  Rd1 {[%clk 0:00:21]} 44. Kb7 {[%clk 0:02:18]}  a5 {[%clk 0:00:18]} 45. Ka6 {[%clk 0:02:17]}  a4 {[%clk 0:00:18]} 46. b6 {[%clk 0:02:17]}  a3 {[%clk 0:00:18]} 47. b7 {[%clk 0:02:16]}  Rdb1 {[%clk 0:00:19]} 48. Rc8+ {[%clk 0:02:16]}  Kh7 {[%clk 0:00:19]} 49. b8=Q {[%clk 0:02:16]}  Rxb8 {[%clk 0:00:19]} 50. Rxb8 {[%clk 0:02:16]}  a2 {[%clk 0:00:19]} 51. Rf8 {[%clk 0:02:04]}  Re1 {[%clk 0:00:17]} 52. Bb2 {[%clk 0:02:03]}  Rb1 {[%clk 0:00:15]} 53. Bc3 {[%clk 0:02:04]}  Rc1 {[%clk 0:00:15]} 54. Bb2 {[%clk 0:02:04]}  Rb1 {[%clk 0:00:15]} 55. Bd4 {[%clk 0:02:04]}  a1=Q+ {[%clk 0:00:15]} 56. Bxa1 {[%clk 0:02:04]}  Rxa1+ {[%clk 0:00:16]} 57. Kb5 {[%clk 0:02:05]}  Rc1 {[%clk 0:00:16]} 58. Rf5 {[%clk 0:02:04]}  Kg6 {[%clk 0:00:17]} 59. Rg5+ {[%clk 0:02:05]}  Kf6 {[%clk 0:00:18]} 60. Kb4 {[%clk 0:02:05]}  g6 {[%clk 0:00:18]} 61. Kb3 {[%clk 0:02:04]}  Rf1 {[%clk 0:00:18]} 62. Rg4 {[%clk 0:02:05]}  Kf5 {[%clk 0:00:18]} 63. Rg5+ {[%clk 0:02:05]}  Kf6 {[%clk 0:00:18]} 64. Rg4 {[%clk 0:02:06]}  Kf5 {[%clk 0:00:19]} 65. Rg5+ {[%clk 0:02:06]}  Kf6 {[%clk 0:00:19]} 1/2-1/2


[Site "https://www.chess.com"]

[Event "Titled Tuesday Blitz April 18 Early 2023"]
[White "Fuzesabonyilaci"]
[Black "O`Gorman, Tom"]
[BlackFideId "2508249"]
[WhiteElo "2338"]
[BlackElo "2271"]
[Result "0-1"]
[Round "01"]
[TimeControl "180+2"]
[Date "2023.04.18"]
[WhiteClock "0:00:15"]
[BlackClock "0:00:34"]

1. e4 {[%clk 0:03:00]}  c6 {[%clk 0:02:57]} 2. d4 {[%clk 0:03:00]}  d5 {[%clk 0:02:58]} 3. e5 {[%clk 0:03:01]}  Bf5 {[%clk 0:02:57]} 4. h4 {[%clk 0:03:01]}  h6 {[%clk 0:02:54]} 5. g4 {[%clk 0:03:00]}  Bd7 {[%clk 0:02:54]} 6. h5 {[%clk 0:02:56]}  c5 {[%clk 0:02:51]} 7. dxc5 {[%clk 0:02:47]}  Nc6 {[%clk 0:02:50]} 8. f4 {[%clk 0:02:44]}  e6 {[%clk 0:02:37]} 9. Be3 {[%clk 0:02:39]}  d4 {[%clk 0:02:27]} 10. Bxd4 {[%clk 0:02:29]}  Nxd4 {[%clk 0:02:28]} 11. Qxd4 {[%clk 0:02:29]}  Bc6 {[%clk 0:02:28]} 12. Qxd8+ {[%clk 0:02:28]}  Rxd8 {[%clk 0:02:29]} 13. Rh2 {[%clk 0:02:17]}  Bxc5 {[%clk 0:02:29]} 14. Ne2 {[%clk 0:02:17]}  Ne7 {[%clk 0:02:28]} 15. Bg2 {[%clk 0:02:15]}  Bxg2 {[%clk 0:02:14]} 16. Rxg2 {[%clk 0:02:15]}  Nd5 {[%clk 0:02:15]} 17. Rg3 {[%clk 0:01:42]}  Be3 {[%clk 0:01:30]} 18. Rf3 {[%clk 0:01:27]}  Bc1 {[%clk 0:01:28]} 19. Rb3 {[%clk 0:01:22]}  Nxf4 {[%clk 0:01:28]} 20. Nxf4 {[%clk 0:01:15]}  Bxf4 {[%clk 0:01:27]} 21. Rxb7 {[%clk 0:01:15]}  Bxe5 {[%clk 0:01:24]} 22. Nd2 {[%clk 0:01:13]}  O-O {[%clk 0:01:22]} 23. Nf3 {[%clk 0:01:09]}  Bf6 {[%clk 0:01:19]} 24. Ke2 {[%clk 0:01:09]}  Rb8 {[%clk 0:01:16]} 25. Rxa7 {[%clk 0:00:53]}  Rxb2 {[%clk 0:01:09]} 26. Rc1 {[%clk 0:00:52]}  Rc8 {[%clk 0:01:07]} 27. Kd2 {[%clk 0:00:46]}  Rc3 {[%clk 0:01:04]} 28. Ke2 {[%clk 0:00:43]}  Rcxc2+ {[%clk 0:00:57]} 29. Rxc2 {[%clk 0:00:44]}  Rxc2+ {[%clk 0:00:58]} 30. Ke3 {[%clk 0:00:42]}  Rc4 {[%clk 0:00:51]} 31. a4 {[%clk 0:00:33]}  Rxg4 {[%clk 0:00:46]} 32. a5 {[%clk 0:00:32]}  Ra4 {[%clk 0:00:46]} 33. a6 {[%clk 0:00:30]}  Kh7 {[%clk 0:00:45]} 34. Rxf7 {[%clk 0:00:21]}  Rxa6 {[%clk 0:00:44]} 35. Ke2 {[%clk 0:00:19]}  Ra5 {[%clk 0:00:44]} 36. Nd2 {[%clk 0:00:18]}  Rxh5 {[%clk 0:00:43]} 37. Ne4 {[%clk 0:00:18]}  Kg6 {[%clk 0:00:43]} 38. Ra7 {[%clk 0:00:18]}  Rb5 {[%clk 0:00:38]} 39. Kf3 {[%clk 0:00:17]}  Rb3+ {[%clk 0:00:38]} 40. Ke2 {[%clk 0:00:15]}  Kf5 {[%clk 0:00:36]} 41. Nf2 {[%clk 0:00:15]}  Rb2+ {[%clk 0:00:34]} 0-1


[Site "https://www.chess.com"]